Cogmind - Beta 14 @@@ ROGUE MODE // 2025.01.04 @ 08:46:13 Player: Angry Canadian Result: Destroyed by D-53 Grenadier with Mini Grenade Launcher Performance ------------- Evolutions (2) 1000 Regions Visited (4) 800 Robots Destroyed (113) 565 Value Destroyed (3413) 3413 Prototype IDs (9) 180 Alien Tech Used (0) 0 Bonus (432) 432 TOTAL SCORE: 6390 Bonus ------- High Alert Combat Kills 226 Follower Combat Kills 206 Cogmind --------- Core Integrity 0/550 Matter 288/300 Energy 240/240 System Corruption 1% Temperature Cool (0) Movement Walking (120) Location -8/Storage Parts ------- > --- POWER (1) -------- Nuclear Core > --- PROPULSION (3) --- Aluminum Leg Aluminum Leg Carbon-fiber Leg > --- UTILITY (4) ------ Medium Storage Unit Advanced Targeting Computer > --- WEAPON (3) ------- Flak Cannon Axe > --- INVENTORY (10) --- Light Nuclear Core Experimental Targeting Computer Heavy Armor Plating Improved Light Armor Plating Improved Light Armor Plating Hacking Suite System Shield Heavy EM Shotgun Precision Beam Rifle Peak State ------------ > --- POWER ------------ Nuclear Core > --- PROPULSION ------- Carbon-fiber Leg Carbon-fiber Leg Carbon-fiber Leg > --- UTILITY ---------- Medium Storage Unit Advanced Targeting Computer Heavy Armor Plating > --- WEAPON ----------- Assault Cannon Assault Cannon Axe > --- INVENTORY -------- Nuclear Core Nuclear Core Carbon-fiber Leg Carbon-fiber Leg Hardened Medium Armor Plating Hacking Suite Gauss Rifle Assault Cannon Flak Cannon Mini Grenade Launcher [Rating: 34] Favorites ----------- Power Nuclear Core Engine Improved Ion Engine Power Core Nuclear Core Propulsion Carbon-fiber Leg Treads Light Treads Leg Carbon-fiber Leg Utility Medium Storage Unit Device Heat Sink Storage Medium Storage Unit Processor Advanced Targeting Computer Hackware Hacking Suite Protection Hardened Medium Armor Plating Weapon Assault Cannon Energy Gun Improved Medium Laser Energy Cannon Light EM Pulse Cannon Ballistic Gun Assault Rifle Ballistic Cannon Assault Cannon Launcher Grenade Launcher Impact Weapon Flail Slashing Weapon Axe Build | -11 -10 -9 -8 -8 ------- Run | Yrd Mat Mat Mat Sto Slots Evolved 4 | . . 2 2 . Power . | . . . . . Propulsion 1 | . . . 1 . Utility 2 | . . 1 1 . Weapon 1 | . . 1 . . Parts Attached 86 | 6 20 27 19 14 Power 10 | 1 2 3 1 3 Engine 6 | 1 2 3 . . Core 4 | . . . 1 3 Reactor . | . . . . . Propulsion 23 | 2 4 5 8 4 Treads 1 | . . . 1 . Leg 22 | 2 4 5 7 4 Wheel . | . . . . . Hover . | . . . . . Flight . | . . . . . Utility 17 | 1 2 7 4 3 Device 4 | . . 3 1 . Storage 5 | 1 1 2 1 . Processor 2 | . 1 . 1 . Hackware 1 | . . 1 . . Protection 5 | . . 1 1 3 Artifact . | . . . . . Weapon 36 | 2 12 12 6 4 Energy Gun 2 | . . 2 . . Energy Cannon 5 | . . 5 . . Ballistic Gun 11 | 2 6 2 . 1 Ballistic Cannon 5 | . . . 3 2 Launcher 9 | . 6 1 2 . Special Weapon . | . . . . . Impact Weapon 2 | . . 2 . . Slashing Weapon 2 | . . . 1 1 Piercing Weapon . | . . . . . Special Melee Weapon . | . . . . . Unidentified Prototypes . | . . . . . Parts Lost 35 | . 3 12 7 13 Power 4 | . 1 1 . 2 Propulsion 10 | . 1 2 3 4 Utility 6 | . . 2 1 3 Weapon 15 | . 1 7 3 4 Highest Loss Streak 7 | . 3 7 6 4 To Critical Strikes . | . . . . . Average Slot Usage (%) 91 | . 94 93 84 93 Engine 5 | . 12 10 1 . Core 4 | . . . 7 8 Leg 23 | . 26 21 21 25 Device 3 | . . 9 4 . Storage 10 | . 14 11 9 9 Processor 8 | . 12 5 6 9 Protection 6 | . . 2 5 15 Energy Gun 1 | . . 5 . . Energy Cannon 3 | . . 11 . . Ballistic Gun 5 | . 14 3 . 5 Ballistic Cannon 6 | . . . 13 12 Launcher 3 | . 12 1 5 . Impact Weapon 3 | . . 8 2 . Slashing Weapon 3 | . . . 3 8 Peak Build Rating 34 | 6 7 19 34 34 Average Rating 20 | 3 6 15 27 29 On Entrance 13 | . 6 7 19 34 Naked Turns . | . . . . . Heaviest Build 47 | 14 20 31 47 45 Greatest Support 45 | 20 20 32 45 45 Greatest Overweight (x) 7 | 1 2 1 7 2 Average Overweight (x) . | . . . . . Largest Inventory Capacity 15 | 8 10 15 10 10 Average Capacity 9 | 7 8 10 10 10 Most Carried 10 | 5 8 10 10 10 Average Carried 6 | 2 4 5 8 7 Final Capacity 10 | 8 10 10 10 10 Final Carried 10 | 2 4 8 10 10 Class Distribution -------------------- 82% | Mutant 9% | Gunner 7% | Scavenger-Mutant Dominant Class ---------------- Mutant | -10/Materials Mutant | -9/Materials Mutant | -8/Materials Mutant | -8/Storage Resources | -11 -10 -9 -8 -8 ----------- Run | Yrd Mat Mat Mat Sto Matter Collected 2169 | 249 340 585 417 578 Remotely . | . . . . . Salvage Created 3534 | . 413 1198 480 1443 Parts 212 | . 34 58 35 85 Haulers Intercepted 6 | . 1 2 1 2 Recyclers Shooed 5 | . 1 1 3 . Parts Field Recycled . | . . . . . Retrieved Matter . | . . . . . Parts Self-Destructed . | . . . . . Prevented . | . . . . . Kills | -11 -10 -9 -8 -8 ------- Run | Yrd Mat Mat Mat Sto Combat Hostiles Destroyed 90 | . 13 25 18 34 Melee 30 | . . 4 5 21 Guns 15 | . 10 4 . 1 Cannons 24 | . . 7 5 12 AOE 15 | . 3 5 7 . Classes Destroyed 12 | . 6 4 1 1 Worker 2 | . 1 . . 1 Builder 1 | . 1 . . . Hauler 6 | . 1 2 1 2 Recycler 3 | . . 1 2 . Watcher 11 | . 3 4 2 2 Swarmer 26 | . 6 6 8 6 Grunt 38 | . 7 9 6 16 Brawler 1 | . . 1 . . Duelist 1 | . . 1 . . Sentry 22 | . . 8 3 11 Demolisher 1 | . . . . 1 Hunter 1 | . . . 1 . Best Kill Streak 8 | . 3 6 8 4 Combat Bots Only 6 | . 3 6 5 3 Max Kills in Single Turn 3 | . 2 3 2 2 Gunslinging . | . . . . . Exploded 2 | . 1 2 1 . Melee 1 | . . 1 1 1 Uniques/NPCs Destroyed . | . . . . . Combat | -11 -10 -9 -8 -8 -------- Run | Yrd Mat Mat Mat Sto Hostile Shots Fired 619 | . 86 184 145 204 Missed 157 | . 29 41 36 51 Damage Taken 6119 | . 572 1837 1227 2483 Core 1032 | . 92 377 220 343 Absorbed by Shields 109 | . . . 109 . Regen/Repaired (Parts) 386 | . . 96 . 290 Core Remaining (%) 56 | 100 63 5 . . Volleys Fired 185 | . 56 56 30 43 Largest 3 | . 2 3 3 2 Hottest 132 | . 50 112 132 88 Shots Fired 327 | . 87 98 59 83 Gun 142 | . 73 50 . 19 Cannon 141 | . . 44 33 64 Launcher 44 | . 14 4 26 . Special . | . . . . . Kinetic 220 | . 73 34 30 83 Thermal 13 | . . 13 . . Explosive 44 | . 14 4 26 . Electromagnetic 50 | . . 47 3 . Robot Hit Streak 11 | . 8 9 6 11 Robot Miss Streak 5 | . 4 5 5 3 Penetration Max 1 | . . . . 1 Secondary Targets . | . . . . . Shots Hit Robots 266 | . 41 82 37 106 Core Hits 155 | . 27 39 44 45 Critical Kills 1 | . 1 . . . Critical Parts Destroyed 3 | . . 3 . . Critical Strikes 10 | . 1 4 2 3 Burn 1 | . . 1 . . Destroy 1 | . 1 . . . Blast 3 | . . . 2 1 Smash 3 | . . 3 . . Sever 2 | . . . . 2 Melee Attacks 121 | . . 33 21 67 Impact 42 | . . 33 9 . Slashing 79 | . . . 12 67 Piercing . | . . . . . Sneak Attacks 4 | . . . 1 3 Combat Hostiles 1 | . . . . 1 Follow-up Attacks . | . . . . . Damage Inflicted 8914 | . 1134 2418 2104 3258 Guns 1017 | . 478 346 . 193 Cannons 2186 | . . 761 379 1046 Explosions 2440 | . 656 512 1272 . Melee 3231 | . . 799 413 2019 Ramming 40 | . . . 40 . Kinetic 2235 | . 478 139 379 1239 Thermal 343 | . . 343 . . Explosive 2234 | . 656 306 1272 . Electromagnetic 831 | . . 831 . . Impact 861 | . . 799 62 . Slashing 2370 | . . . 351 2019 Piercing . | . . . . . Highest Corruption 4 | . . 4 1 1 Average Corruption 2 | . . 4 1 1 Corruption Purged . | . . . . . Corruption Blocked . | . . . . . Effects 28 | . . 19 2 7 Message Errors 4 | . . 3 . 1 Matter Fused 4 | . . 3 . 1 Heat Flow Errors 5 | . . 4 . 1 Energy Discharges 5 | . . 5 . . Parts Rejected 2 | . . 1 1 . Parts Fused 1 | . . . 1 . Data Loss (minor) 3 | . . 2 . 1 Data Loss (major) 3 | . . 1 . 2 Misfires 1 | . . . . 1 Overload Shots . | . . . . . Overflow Damage 380 | . . 208 111 61 Projectiles 27 | . . . 18 9 Explosions 89 | . . . 89 . Melee 264 | . . 208 4 52 Knockbacks 9 | . . . 4 5 Impact 1 | . . . 1 . Kinetic 8 | . . . 3 5 Secondary . | . . . . . Self-Inflicted Damage 220 | . 53 26 141 . Shots 11 | . 4 2 5 . Rammed . | . . . . . Targets Rammed 16 | . . . 16 . Kicked 16 | . . . 16 . Crushed . | . . . . . Highest Temperature 345 | . 12 256 126 345 Average Temperature 68 | . 4 76 42 73 Received Heat Transfer 2103 | . 93 687 279 1044 Effects 2 | . . 2 . . Interference 2 | . . 2 . . Siege Activations . | . . . . . Robots Corrupted 6 | . . 5 1 . Combat Hostiles 6 | . . 5 1 . Parts Fried 15 | . . 14 1 . Impact Corruptions 8 | . . 7 1 . Robots Melted . | . . . . . Combat Hostiles . | . . . . . Parts Melted . | . . . . . Heat Transferred 670 | . . 670 . . Parts Sabotaged . | . . . . . Parts Stolen . | . . . . . Parts Stripped . | . . . . . Power Chain Reactions 3 | . . 3 . . Alert | -11 -10 -9 -8 -8 ------- Run | Yrd Mat Mat Mat Sto Peak Influence 639 | . 295 364 573 639 Initial 149 | . . 37 149 118 Average 298 | . 138 238 272 477 Maximum Alert Level 2 | . 1 1 2 2 Low Security (%) 31 | 100 68 28 40 6 Level 1 40 | . 31 71 30 19 Level 2 28 | . . . 28 74 Level 3 . | . . . . . Level 4 . | . . . . . Level 5 . | . . . . . High Security . | . . . . . Max Security . | . . . . . Squads Dispatched 15 | . 2 2 3 8 Investigation 5 | . 1 1 1 2 Extermination . | . . . . . Reinforcement 7 | . 1 1 1 4 Assault 2 | . . . . 2 Garrison 1 | . . . 1 . Intercept . | . . . . . Searches Triggered . | . . . . . Construction Impeded . | . . . . . Haulers Reinforced . | . . . . . Active Scanning Responses . | . . . . . Cargo Convoy Interrupts . | . . . . . Stealth | -11 -10 -9 -8 -8 --------- Run | Yrd Mat Mat Mat Sto Distress Signals 8 | . . 2 2 4 Communications Jammed . | . . . . . Distress Signals . | . . . . . Times Spotted 139 | . 18 39 31 51 Peak Tracking Total 14 | . 4 8 9 14 Tactical Retreats 5 | . 1 2 1 1 Traps | -11 -10 -9 -8 -8 ------- Run | Yrd Mat Mat Mat Sto Traps Triggered 6 | . 4 1 . 1 Indirectly . | . . . . . Trap Hack Attempts . | . . . . . Triggered . | . . . . . Disarmed . | . . . . . Reprogrammed . | . . . . . Reused . | . . . . . Traps Extracted . | . . . . . Installed . | . . . . . Triggered . | . . . . . Machines | -11 -10 -9 -8 -8 ---------- Run | Yrd Mat Mat Mat Sto Machines Disabled 10 | . 3 2 3 2 Max in Single Turn 1 | . 1 1 1 1 Machines Repaired . | . . . . . Machines Dismantled . | . . . . . Machines Sabotaged . | . . . . . Overloaded Fab Kills . | . . . . . Hacking | -11 -10 -9 -8 -8 --------- Run | Yrd Mat Mat Mat Sto Machines Accessed 32 | . 9 10 5 8 Terminals 21 | . 7 6 3 5 Fabricators . | . . . . . Repair Stations 4 | . 1 2 . 1 Recycling Units 4 | . 1 1 . 2 Scanalyzers 3 | . . 1 2 . Garrison Access . | . . . . . Total Hacks 88 | . 25 27 16 20 Successful 49 | . 13 11 10 15 Failed 39 | . 12 16 6 5 Catastrophic 3 | . 1 2 . . Database Lockouts . | . . . . . Manual 1 | . . . . 1 Terminals 57 | . 22 17 10 8 Fabricators . | . . . . . Repair Stations 18 | . 2 7 . 9 Recycling Units 5 | . 1 1 . 3 Scanalyzers 8 | . . 2 6 . Garrison Access . | . . . . . Terminal Hacks 28 | . 12 4 7 5 Record 2 | . . 1 1 . Part Schematic 1 | . . . . 1 Robot Analysis 1 | . . . 1 . Prototype ID Bank 5 | . 3 1 . 1 Open Door 2 | . . . . 2 Emergency Access Points 3 | . 2 1 . . Alert Level 8 | . 3 1 3 1 Unreport Threat 3 | . 1 . 2 . Locate Traps 1 | . 1 . . . Recall Investigation 1 | . 1 . . . Zone Layout 1 | . 1 . . . Fabricator Hacks . | . . . . . Repair Station Hacks 11 | . . 4 . 7 Scan Component 7 | . . 3 . 4 Repair 4 | . . 1 . 3 Recycling Unit Hacks 5 | . 1 1 . 3 Report Inventory 4 | . 1 1 . 2 Retrieve Components 1 | . . . . 1 Scanalyzer 5 | . . 2 3 . Insert Component 3 | . . 1 2 . Analyze 2 | . . 1 1 . Garrison Access Hacks . | . . . . . Unauthorized Hacks . | . . . . . Terminals . | . . . . . Fabricators . | . . . . . Repair Stations . | . . . . . Recycling Units . | . . . . . Scanalyzers . | . . . . . Garrison Access . | . . . . . Data Cores Recovered . | . . . . . Used . | . . . . . Hacking Detections 25 | . 7 9 5 4 Full Trace Events 2 | . . . 1 1 Feedback Events 1 | . . . 1 . Corruption 1 | . . . 1 . Feedback Blocked . | . . . . . Robot Schematics Acquired . | . . . . . Robots Built . | . . . . . Authchips . | . . . . . Time . | . . . . . Total Robot Build Rating . | . . . . . Part Schematics Acquired 3 | . . 1 1 1 Parts Built . | . . . . . Authchips . | . . . . . Time . | . . . . . Total Part Build Rating . | . . . . . Parts Repaired 4 | . . 1 . 3 Time 161 | . . 32 . 129 Parts Recycled . | . . . . . Recycled Matter . | . . . . . Retrieved Matter . | . . . . . Retrieved Components 2 | . . . . 2 Parts Scanalyzed 3 | . . 1 2 . Part Schematics Acquired 2 | . . 1 1 . Parts Damaged . | . . . . . Bothacking | -11 -10 -9 -8 -8 ------------ Run | Yrd Mat Mat Mat Sto Used RIF Installer . | . . . . . Robots Hacked . | . . . . . Non-combat . | . . . . . Combat . | . . . . . Robot Hacks Applied . | . . . . . Relay Couplers Released . | . . . . . Fabnet Peak Effective % . | . . . . . Robots Rewired . | . . . . . Allies Hacked . | . . . . . Hacks Repelled . | . . . . . Allies | -11 -10 -9 -8 -8 -------- Run | Yrd Mat Mat Mat Sto Total Allies 12 | . . . . 12 Largest Group 12 | . . . . 12 Highest-Rated Group 235 | . . . . 235 Highest-Rated Ally 31 | . . . . 31 Total Orders . | . . . . . Ally Attacks 50 | . . . . 50 Total Damage 736 | . . . . 736 Kills 6 | . . . . 6 Allies Corrupted . | . . . . . Allies Melted . | . . . . . Intel | -11 -10 -9 -8 -8 ------- Run | Yrd Mat Mat Mat Sto Robot Analysis Total 1 | . . . 1 . Derelict Logs Recovered . | . . . . . Drone Launches . | . . . . . Drone Recoveries . | . . . . . Exploration | -11 -10 -9 -8 -8 ------------- Run | Yrd Mat Mat Mat Sto Turns Passed 5765 | 48 1005 1828 1145 1739 Spaces Moved 2864 | 32 673 956 594 609 Core 58 | 12 32 . 14 . Treads 59 | . . . 59 . Legs 2747 | 20 641 956 521 609 Wheels . | . . . . . Hover . | . . . . . Flight . | . . . . . Fastest Speed 50 | 50 100 120 120 120 Average Speed 144 | 106 121 147 152 158 Slowest Speed 400 | 190 190 190 400 260 Overloaded Moves . | . . . . . Propulsion Burnouts . | . . . . . Robots Hopped . | . . . . . Cave-ins Triggered . | . . . . . Exploration Rate (%) 63 | 4 94 82 49 87 Regions Visited 4 Branch Regions 1 Pre-discovered Areas 1 | . . . . 1 Known Exits Taken . | . . . . . Unknown Exits Taken 4 | 1 1 1 1 . Scrap Searched . | . . . . . Spaces Dug 4 | . 4 . . . Terrain Destroyed 290 | . 107 28 144 11 Melee . | . . . . . Projectile 17 | . . . 6 11 AOE 273 | . 107 28 138 . Terrain Rammed . | . . . . . Walls Destroyed . | . . . . . Machines Disabled . | . . . . . Actions | -11 -10 -9 -8 -8 --------- Run | Yrd Mat Mat Mat Sto Total 3977 | 45 774 1231 740 1187 Wait 575 | . 4 110 24 437 Move 2860 | 31 672 955 593 609 Hop . | . . . . . Pick Up 98 | 8 16 35 24 15 Fast Attach . | . . . . . Attach 64 | 6 11 19 14 14 Detach 1 | . 1 . . . Swap 22 | . 9 8 5 . Drop 35 | . 5 15 13 2 Fire 185 | . 56 56 30 43 Melee 121 | . . 33 21 67 Ram . | . . . . . Kick 16 | . . . 16 . Crush . | . . . . . Escape Stasis . | . . . . . Rewire . | . . . . . Trap . | . . . . . Miscellaneous . | . . . . . Route ------- -11/Scrapyard -10/Materials (discovered 4 exits: *Mat x3 / [*Min]) -9/Materials (discovered 2 exits: *Mat / [*Min]) -8/Materials (discovered 2 exits: *Sto x2) -8/Storage (discovered 1 exit: [*Fac]) History --------- Turn | Location | Event 12 | -11/Scrapyard | Discovered new exit (range 16) 49 | -11/Scrapyard | Entered Materials 215 | -10/Materials | Discovered new exit (range 15) 328 | -10/Materials | Build established: Mutant 496 | -10/Materials | Discovered new exit (range 15) 594 | -10/Materials | Discovered new exit (range 12) 843 | -10/Materials | Lost 3 parts (1p1n1w) 1020 | -10/Materials | Discovered new exit (range 5) 1054 | -10/Materials | Entered another Materials area 1054 | -9/Materials | Evolved 2 slots: Utility x1, Weapon x1 1362 | -9/Materials | Lost 7 parts (1p2n4w) 1392 | -9/Materials | Discovered new exit (range 16) 1432 | -9/Materials | Core integrity fell below 50% 2020 | -9/Materials | Lost 3 parts (2u1w) 2086 | -9/Materials | Repaired Imp. Aluminum Leg 2567 | -9/Materials | Discovered new exit (range 9) 2761 | -9/Materials | Core integrity fell below 20% 2882 | -9/Materials | Entered another Materials area 2882 | -8/Materials | Evolved 2 slots: Propulsion x1, Utility x1 2958 | -8/Materials | Lost 6 parts (3n1u2w) 3179 | -8/Materials | Discovered new exit (range 5) 3733 | -8/Materials | Discovered new exit (range 16) 3915 | -8/Materials | Garrison activated, responded to threat 4027 | -8/Materials | Entered Storage 4370 | -8/Storage | Core integrity fell below 50% 4411 | -8/Storage | Lost 4 parts (1p1n1u1w) 4467 | -8/Storage | Lost 3 parts (1p1n1w) 4467 | -8/Storage | Discovered new exit (range 15) 4511 | -8/Storage | Found Prototype Processor 4523 | -8/Storage | Core integrity fell below 20% 4778 | -8/Storage | Repaired Hrd. Medium Armor Plating 4818 | -8/Storage | Repaired Axe 4873 | -8/Storage | Repaired Broken Nuclear Core 5248 | -8/Storage | Build established: Scavenger-Mutant 5413 | -8/Storage | Learned location of Armory (-3) 5651 | -8/Storage | Build established: Mutant 5656 | -8/Storage | Assisted by bots powering up and referring to "LRC-V3" 5687 | -8/Storage | Met a pair of Derelict thieves 5766 | -8/Storage | Destroyed by D-53 Grenadier with Mini Grenade Launcher Last Messages --------------- G-47 Trooper destroyed. Trooper 3e destroyed. CY-823(g) destroyed. I-25 Savior destroyed. K-01 Serf collects debris. Soldier 3a destroyed. D-53 Grenadier destroyed. Trooper 3f destroyed. D-53 Grenadier destroyed. G-47 Trooper destroyed. Hrd. Light Armor Plating destroyed. Critical hit (Burn: +37). Destroyed Lgt. Angular Momentum Engine. Assault Cannon destroyed. G-50 Soldier destroyed. M-13 Machinist repairs D-53 Grenadier. K-01 Serf collects debris. Hrd. Medium Armor Plating destroyed. D-53 Grenadier knocked back. K-01 Serf collects debris. Map ----- +----------------------------------------------------+ | #??????#+######## #???????????#""" #### | | #??????# #??????#####???????????#""" + | | #??????# #??????????????????????#""" %#### | | """ #??????# #??????????????????????# ####### | | """ #??##### #??????????????????????# +*%=!#? | | """ #??# # ########?###???????????##########!#? | | ######??# + # #??????????????????###+## | | ????????# # # #??????????????????# %% | | ????????##### # """"" #??????????????????#% "" | | ????????????# # """"" #?#######??????????# ""? | | ########????# # """"" "#?# #??????????# "??? | | #????# # T#?# #??????????# ???? | | """" #????# + = % "#?# T#??????????# ???" | | "??"" #????# # !% #?## ##??????????# """" | | "???"" #????# ####+###########+###?????????# | | ""???" ###### #?## ## #% ###############+ | | ""??"!# ### # # % | | """"=# + [ # % | | =[+%!### #### # * # | | %#=!###/#####+### ##### ############ | | +####### ## #?###???# k ######## #### | | ##### # ######## !* # / | | # ##[[ =#=d %[ # """ ##### | | T +[ | !## ["[m#%**#""T" /!/ #???? | | ##### # [ ## %[%=%* /%% // #???? | | #######+#########+### =@"*%[*%[#" % / #???? | | #?# #???# #?# ] #T## # % #???? | | #?# """" #???# #?#] ] #### # #???? | | #?# ""??" #???# #?######??# ########+####???? | | ### ""???" #???# #?????????# ######## ######## | | T## "???"" #???# #?????????# | | ### "??"" ##### ########### % < | | ""?# """" / % | | ???# ########### ##########+######## | | ???##################### #### #? | | ?????????????# [=%%+ ##"" """ """ """ #? | | ?????????????# =[%*##########"T """ """ """ #? | | ?????????????# [*#????????#"" """ """ """ ? | | ?????????????# #????????### ?? | | ?????????????###########??????????# * ?? | | ??????????????????????????????????###############? | | | | | | | | | | | | | | | | | | | +----------------------------------------------------+ Best States ------------- Heat Dissipation 48 Energy Generation 14 Energy Capacity 280 Matter Stores 300 Matter Capacity 300 Sight Range 16 Terrain Scan Density 10 Additional Mass Support 6 Armor Coverage 600 Evasion (%) 55 Targeting Accuracy 8 Recoil Reduction 1 Offensive Hacking 10 Item Schematics ----------------- Aluminum Leg | -9/Materials | Scanalyzed Nuclear Core | -8/Materials | Scanalyzed Imp. Medium Armor Plating | -8/Storage | Hacked Robot Schematics ------------------ None Fabricated ------------ Nothing Alien Tech Used ----------------- None Achievements -------------- None Challenges ------------ None Game ------ Seed MomentumNullMapper Manual? 0 Play Time 01:26:02 Cumulative 7.4 hours Start 2025.01.04 @ 07:18:19 End 2025.01.04 @ 08:46:13 Sessions 1 Manual Loads 0 Difficulty Rogue Special Mode None Game No. 6 Rogue 6 Adventurer 0 Explorer 0 Win Type - Total 0 Types 0/0/0/0/0/0/0/0/0 Lore% 2 Gallery% 8 Achievement% 13 Wizard Run 0 Options --------- Layout 1 ASCII 0 Keyboard 0 Movement Mouse Keybinds 0 Fullscreen 1 Font 24/Smallcaps Map View 50x35 Zoom Use 0% Tactical HUD 0 Map Filters NONE Filters NONE Steam 1 RUN: d93d94f7-024e-491d-9a3d-3f1ae9faabf5